Cogmind - Beta 14 @@@ ROGUE MODE // 2024.08.07 @ 16:20:01 Player: Pogmind Result: Destroyed by 08-TLR(R) with Subdweller Machine Gun Performance ------------- Evolutions (0) 0 Regions Visited (2) 400 Robots Destroyed (40) 200 Value Destroyed (846) 846 Prototype IDs (0) 0 Alien Tech Used (0) 0 Bonus (0) 0 TOTAL SCORE: 1446 Bonus ------- None Cogmind --------- Core Integrity 0/250 Matter 265/300 Energy 151/200 System Corruption 2% Temperature Cool (73) Movement Core (1500) Ox29 Location -10/Subcaves Parts ------- > --- POWER (1) -------- Subdweller Power Source > --- PROPULSION (2) --- (None) > --- UTILITY (2) ------ Huge Storage Unit > --- WEAPON (2) ------- Beam Cannon > --- INVENTORY (25) --- Ion Engine Wheel Subdweller Monowheel Disposable Heat Sink Disposable Heat Sink Disposable Heat Sink Disposable Heat Sink Cargo Storage Unit Scrap Shield EM Pulse Gun EM Pulse Gun Medium Laser Medium Laser Particle Gun Particle Gun Particle Gun Subdweller Laser Subdweller Machine Gun Datajack Hammer Mining Claw Peak State ------------ > --- POWER ------------ Subdweller Power Source > --- PROPULSION ------- Light Treads Light Treads > --- UTILITY ---------- Huge Storage Unit Light Armor Plating > --- WEAPON ----------- Particle Gun Beam Cannon > --- INVENTORY -------- Ion Engine Wheel Subdweller Monowheel Disposable Heat Sink Disposable Heat Sink Disposable Heat Sink Disposable Heat Sink Cargo Storage Unit Medium Matter Pod Scrap Shield EM Pulse Gun EM Pulse Gun Medium Laser Medium Laser Particle Gun Particle Gun Particle Gun Subdweller Laser Assault Rifle Grenade Launcher Datajack Hammer Mining Claw [Rating: 12] Favorites ----------- Power Light Ion Engine Engine Light Ion Engine Propulsion Light Treads Treads Light Treads Wheel Wheel Utility Huge Storage Unit Device Seismic Detector Storage Huge Storage Unit Protection Light Armor Plating Weapon Beam Cannon Energy Gun Medium Laser Energy Cannon Beam Cannon Ballistic Gun Assault Rifle Launcher Grenade Launcher Impact Weapon Hammer Build | -11 -10 -10 ------- Run | Yrd Mat Sub Slots Evolved . | . . . Power . | . . . Propulsion . | . . . Utility . | . . . Weapon . | . . . Parts Attached 35 | 7 15 13 Power 5 | 1 3 1 Engine 5 | 1 3 1 Core . | . . . Reactor . | . . . Propulsion 8 | 2 5 1 Treads 7 | 2 4 1 Leg . | . . . Wheel 1 | . 1 . Hover . | . . . Flight . | . . . Utility 8 | 2 2 4 Device 2 | 1 . 1 Storage 3 | 1 1 1 Processor . | . . . Hackware . | . . . Protection 3 | . 1 2 Artifact . | . . . Weapon 14 | 2 5 7 Energy Gun 5 | 1 1 3 Energy Cannon 2 | . 1 1 Ballistic Gun 3 | 1 2 . Ballistic Cannon . | . . . Launcher 1 | . . 1 Special Weapon . | . . . Impact Weapon 3 | . 1 2 Slashing Weapon . | . . . Piercing Weapon . | . . . Special Melee Weapon . | . . . Unidentified Prototypes . | . . . Parts Lost 11 | . 1 10 Power . | . . . Propulsion 4 | . 1 3 Utility 4 | . . 4 Weapon 3 | . . 3 Highest Loss Streak 5 | . 1 5 To Critical Strikes . | . . . Average Slot Usage (%) 97 | . 97 98 Engine 12 | . 12 13 Treads 26 | . 26 27 Wheel 1 | . 1 . Storage 14 | . 14 18 Protection 11 | . 12 6 Energy Gun 3 | . 2 8 Energy Cannon 12 | . 11 14 Ballistic Gun 6 | . 8 . Impact Weapon 5 | . 5 5 Peak Build Rating 12 | 7 10 12 Average Rating 8 | 5 7 10 On Entrance 5 | . 7 10 Naked Turns . | . . . Heaviest Build 94 | 13 91 94 Greatest Support 40 | 40 40 40 Greatest Overweight (x) 30 | . 30 2 Average Overweight (x) 2 | . 3 2 Largest Inventory Capacity 25 | 8 25 25 Average Capacity 21 | 7 21 25 Most Carried 25 | 2 23 25 Average Carried 14 | 1 13 24 Final Capacity 25 | 8 25 25 Final Carried 23 | 2 23 23 Class Distribution -------------------- 100% | Mutant Dominant Class ---------------- Mutant | -10/Materials Mutant | -10/Subcaves Resources | -11 -10 -10 ----------- Run | Yrd Mat Sub Matter Collected 793 | 279 411 103 Remotely . | . . . Salvage Created 1389 | 114 950 325 Parts 73 | 6 53 14 Haulers Intercepted 1 | . 1 . Recyclers Shooed 3 | . 3 . Parts Field Recycled . | . . . Retrieved Matter . | . . . Parts Self-Destructed . | . . . Prevented . | . . . Kills | -11 -10 -10 ------- Run | Yrd Mat Sub Combat Hostiles Destroyed 25 | . 17 8 Melee 3 | . 3 . Guns 8 | . 5 3 Cannons 9 | . 7 2 AOE 2 | . . 2 Classes Destroyed 10 | 2 7 1 Worker 2 | . 2 . Builder 1 | . 1 . Tunneler 2 | 1 1 . Hauler 1 | . 1 . Recycler 5 | 1 4 . Operator 1 | . 1 . Watcher 3 | . 3 . Swarmer 8 | . 8 . Grunt 9 | . 9 . Subdweller 8 | . . 8 Best Kill Streak 7 | 2 7 2 Combat Bots Only 4 | . 4 2 Max Kills in Single Turn 1 | 1 1 1 Gunslinging . | . . . Exploded 1 | . . 1 Melee 1 | . 1 . Uniques/NPCs Destroyed . | . . . Combat | -11 -10 -10 -------- Run | Yrd Mat Sub Hostile Shots Fired 147 | . 93 54 Missed 45 | . 31 14 Damage Taken 1524 | . 604 920 Core 254 | . 129 125 Absorbed by Shields . | . . . Regen/Repaired (Parts) 99 | . 99 . Core Remaining (%) 100 | 100 . . Volleys Fired 99 | 3 63 33 Largest 2 | 2 2 2 Hottest 125 | 70 80 125 Shots Fired 181 | 6 113 62 Gun 101 | 6 69 26 Cannon 77 | . 44 33 Launcher 3 | . . 3 Special . | . . . Kinetic 55 | 3 52 . Thermal 123 | 3 61 59 Explosive 3 | . . 3 Electromagnetic . | . . . Robot Hit Streak 15 | 5 7 15 Robot Miss Streak 5 | . 5 1 Penetration Max . | . . . Secondary Targets . | . . . Shots Hit Robots 128 | 5 71 52 Core Hits 52 | 3 35 14 Critical Kills 1 | . 1 . Critical Parts Destroyed 2 | . 1 1 Critical Strikes 5 | 1 2 2 Burn 2 | 1 . 1 Smash 3 | . 2 1 Melee Attacks 33 | . 21 12 Impact 33 | . 21 12 Slashing . | . . . Piercing . | . . . Sneak Attacks 2 | . 2 . Combat Hostiles . | . . . Follow-up Attacks . | . . . Damage Inflicted 2530 | 61 1437 1032 Guns 798 | 61 454 283 Cannons 839 | . 416 423 Explosions 223 | . . 223 Melee 653 | . 550 103 Ramming 17 | . 17 . Kinetic 381 | 25 356 . Thermal 1256 | 36 514 706 Explosive 223 | . . 223 Electromagnetic . | . . . Impact 653 | . 550 103 Slashing . | . . . Piercing . | . . . Highest Corruption 2 | . 2 2 Average Corruption 2 | . 2 2 Corruption Purged . | . . . Corruption Blocked . | . . . Effects 10 | . 2 8 Message Errors 2 | . . 2 Matter Fused 4 | . 2 2 Heat Flow Errors 3 | . . 3 Energy Discharges 1 | . . 1 Overload Shots . | . . . Overflow Damage 124 | . 87 37 Projectiles 1 | . 1 . Explosions . | . . . Melee 123 | . 86 37 Knockbacks 7 | . 6 1 Impact 7 | . 6 1 Kinetic . | . . . Secondary . | . . . Self-Inflicted Damage 24 | . . 24 Shots 1 | . . 1 Rammed 4 | . 4 . Targets Rammed 4 | . 4 . Kicked . | . . . Crushed . | . . . Highest Temperature 273 | 27 273 207 Average Temperature 56 | 14 69 26 Received Heat Transfer 279 | . 189 90 Siege Activations . | . . . Robots Corrupted 4 | . 3 1 Combat Hostiles 3 | . 2 1 Parts Fried 7 | . 7 . Impact Corruptions 7 | . 5 2 Robots Melted . | . . . Combat Hostiles . | . . . Parts Melted 4 | 1 3 . Heat Transferred 3034 | 185 1184 1665 Parts Sabotaged . | . . . Parts Stolen . | . . . Parts Stripped . | . . . Power Chain Reactions . | . . . Alert | -11 -10 -10 ------- Run | Yrd Mat Sub Peak Influence 232 | 10 232 . Initial 6 | . 6 . Average 100 | 3 104 . Maximum Alert Level 1 | . 1 . Low Security (%) 82 | 100 81 . Level 1 17 | . 18 . Level 2 . | . . . Level 3 . | . . . Level 4 . | . . . Level 5 . | . . . High Security . | . . . Max Security . | . . . Squads Dispatched 4 | . 4 . Investigation 2 | . 2 . Extermination . | . . . Reinforcement 2 | . 2 . Assault . | . . . Garrison . | . . . Intercept . | . . . Searches Triggered . | . . . Construction Impeded . | . . . Haulers Reinforced . | . . . Active Scanning Responses . | . . . Cargo Convoy Interrupts . | . . . Stealth | -11 -10 -10 --------- Run | Yrd Mat Sub Distress Signals 2 | . 2 . Communications Jammed . | . . . Distress Signals . | . . . Times Spotted 37 | . 28 9 Peak Tracking Total 5 | . 5 3 Tactical Retreats 3 | . 3 . Traps | -11 -10 -10 ------- Run | Yrd Mat Sub Traps Triggered 4 | . 4 . Indirectly . | . . . Trap Hack Attempts . | . . . Triggered . | . . . Disarmed . | . . . Reprogrammed . | . . . Reused . | . . . Traps Extracted . | . . . Installed . | . . . Triggered . | . . . Machines | -11 -10 -10 ---------- Run | Yrd Mat Sub Machines Disabled 1 | . 1 . Max in Single Turn 1 | . 1 . Machines Repaired . | . . . Machines Dismantled . | . . . Machines Sabotaged . | . . . Overloaded Fab Kills . | . . . Hacking | -11 -10 -10 --------- Run | Yrd Mat Sub Machines Accessed 9 | . 9 . Terminals 6 | . 6 . Fabricators . | . . . Repair Stations 1 | . 1 . Recycling Units 2 | . 2 . Scanalyzers . | . . . Garrison Access . | . . . Total Hacks 30 | . 30 . Successful 12 | . 12 . Failed 18 | . 18 . Catastrophic . | . . . Database Lockouts . | . . . Manual 24 | . 24 . Terminals 23 | . 23 . Fabricators . | . . . Repair Stations 4 | . 4 . Recycling Units 3 | . 3 . Scanalyzers . | . . . Garrison Access . | . . . Terminal Hacks 4 | . 4 . Part Schematic 2 | . 2 . Robot Analysis 2 | . 2 . Fabricator Hacks . | . . . Repair Station Hacks 3 | . 3 . Scan Component 2 | . 2 . Repair 1 | . 1 . Recycling Unit Hacks . | . . . Scanalyzer . | . . . Garrison Access Hacks . | . . . Unauthorized Hacks 5 | . 5 . Terminals 3 | . 3 . Botnet 3 | . 3 . Fabricators . | . . . Repair Stations . | . . . Recycling Units 2 | . 2 . Tunnel 2 | . 2 . Scanalyzers . | . . . Garrison Access . | . . . Data Cores Recovered . | . . . Used . | . . . Hacking Detections 7 | . 7 . Full Trace Events . | . . . Feedback Events . | . . . Feedback Blocked . | . . . Robot Schematics Acquired . | . . . Robots Built . | . . . Authchips . | . . . Time . | . . . Total Robot Build Rating . | . . . Part Schematics Acquired 2 | . 2 . Parts Built . | . . . Authchips . | . . . Time . | . . . Total Part Build Rating . | . . . Parts Repaired 1 | . 1 . Time 26 | . 26 . Parts Recycled . | . . . Recycled Matter . | . . . Retrieved Matter . | . . . Retrieved Components . | . . . Parts Scanalyzed . | . . . Part Schematics Acquired . | . . . Parts Damaged . | . . . Bothacking | -11 -10 -10 ------------ Run | Yrd Mat Sub Used RIF Installer . | . . . Robots Hacked . | . . . Non-combat . | . . . Combat . | . . . Robot Hacks Applied . | . . . Relay Couplers Released . | . . . Fabnet Peak Effective % . | . . . Robots Rewired . | . . . Allies Hacked . | . . . Hacks Repelled . | . . . Allies | -11 -10 -10 -------- Run | Yrd Mat Sub Total Allies . | . . . Largest Group . | . . . Highest-Rated Group . | . . . Highest-Rated Ally . | . . . Total Orders . | . . . Ally Attacks . | . . . Total Damage . | . . . Kills . | . . . Allies Corrupted . | . . . Allies Melted . | . . . Intel | -11 -10 -10 ------- Run | Yrd Mat Sub Robot Analysis Total 2 | . 2 . Derelict Logs Recovered . | . . . Drone Launches . | . . . Drone Recoveries . | . . . Exploration | -11 -10 -10 ------------- Run | Yrd Mat Sub Turns Passed 3693 | 109 2935 649 Spaces Moved 976 | 58 763 155 Core 37 | 5 32 . Treads 858 | 53 650 155 Legs . | . . . Wheels 81 | . 81 . Hover . | . . . Flight . | . . . Fastest Speed 50 | 50 160 320 Average Speed 297 | 150 304 320 Slowest Speed 1550 | 160 1550 320 Overloaded Moves . | . . . Propulsion Burnouts . | . . . Robots Hopped . | . . . Cave-ins Triggered . | . . . Exploration Rate (%) 38 | 6 98 10 Regions Visited 2 Branch Regions 1 Pre-discovered Areas 2 | . 2 . Known Exits Taken . | . . . Unknown Exits Taken 2 | 1 1 . Scrap Searched . | . . . Spaces Dug . | . . . Terrain Destroyed 18 | . . 18 Melee . | . . . Projectile . | . . . AOE 18 | . . 18 Terrain Rammed . | . . . Walls Destroyed . | . . . Machines Disabled . | . . . Actions | -11 -10 -10 --------- Run | Yrd Mat Sub Total 1511 | 70 1218 223 Wait 330 | 1 327 2 Move 974 | 57 762 155 Hop . | . . . Pick Up 30 | 2 22 6 Fast Attach 18 | 7 10 1 Attach 7 | . 1 6 Detach 1 | . 1 . Swap 10 | . 4 6 Drop 5 | . 3 2 Fire 99 | 3 63 33 Melee 33 | . 21 12 Ram . | . . . Kick . | . . . Crush 4 | . 4 . Escape Stasis . | . . . Rewire . | . . . Trap . | . . . Miscellaneous . | . . . Route ------- -11/Scrapyard -10/Materials (discovered 5 exits: [*Mat x3] / [*Min] / [*Sub]) -10/Subcaves History --------- Turn | Location | Event 10 | -11/Scrapyard | Discovered new exit (range 16) 110 | -11/Scrapyard | Entered Materials 318 | -10/Materials | Build established: Mutant 406 | -10/Materials | Discovered new exit (range 8) 945 | -10/Materials | Discovered new exit (range 12) 2146 | -10/Materials | Repaired Lgt. Treads 2418 | -10/Materials | Core integrity fell below 50% 2506 | -10/Materials | Discovered new exit (range 12) 2685 | -10/Materials | Discovered new exit (range 13) 2862 | -10/Materials | Discovered new exit (range 7) 3045 | -10/Materials | Entered Subcaves 3052 | -10/Subcaves | Ambushed by Subdwellers from Twisted Machinery 3679 | -10/Subcaves | Ambushed by Subdweller buried in earth 3685 | -10/Subcaves | Core integrity fell below 20% 3694 | -10/Subcaves | Destroyed by 08-TLR(R) with Subdweller Machine Gun Last Messages --------------- 03490_ Acquired 10 matter. 03498_ Subatomizers dissect the Lgt. Ion Engine. 03500_ BV-A01(u) builds Twisted Machinery. 03503_ System corrupted: Matter fused (-5). 03527_ System corrupted: Heat flow error (+252). 03536_ Subatomizers dissect the Lgt. Ion Engine, destroying it. 03567_ System corrupted: Heat flow error (+128). 03673_ System corrupted: Energy discharge (-50). 03679_ Med. Matter Pod destroyed. 03679_ Lgt. Treads destroyed. 03680_ 08-TLR(R): "ARGHSUB!" 03680_ Particle Gun destroyed. 03681_ Lgt. Treads destroyed. 03684_ N9-IRM(R) destroyed. 03685_ The unstable cave ceiling collapses. 03686_ YF-R23(R) destroyed. 03688_ Grenade Launcher destroyed. 03688_ Destroyed Grenade Launcher. 03690_ System corrupted: Heat flow error (+133). 03691_ The unstable cave ceiling collapses. Map ----- +----------------------------------------------------+ | ?????????????????????????????????????????????????? | | ?????????????????????????????????????????????????? | | ?????????????????????????????????????????????????? | | ?????????????????????????????????????????????????? | | ?????????????????????????????????????????????????? | | ?????????????????????????????????????????????????? | | ?????????????????????????????????????????????????? | | ?????????????????????????????????????????????????? | | ?????????????????????????????????????????????????? | | ?????????????????????????????????????????????????? | | ???????????????????????????#?????????????????????? | | ????????????????????? ????# ????????????????????? | | ????????????????????? #?## ????????????????????? | | ?????????????????????# # ????????????????????? | | ?????????????????????# #?##?????????????????? | | ?????????????????????# = ## #?????????????????? | | ?????????????????????# !%& # ??????????????????? | | ?????????????????????? % # ??????????????????? | | ?????????????????????? & ???????????????????? | | ?????????????????????## #????????????? ?????? | | ?????????????????##### ##???????????? ????? | | ???????????#?????#;; #???????????# ??? | | ???????????# ## #???????????? ?# | | ??????????# #?????????????? # | | ??????????# ##??????????????? | | ??????????# @ ##??????????????? | | ????????????????# #????????????????? | | ????????????????## R #???????????????## | | ?????????????????#;; ;;; ##??????????????## | | ??????????????#####;;## #?????########### | | ??????????????# ##??## # ###???###""#"#"## # | | ??????????????# ###### #????#"[ "" """"" | | ??????????????# ##???##!# # "##" | | ??????????????# ######%#########" | | ????????????### ## #!"!#!##??#"" | | ????????????# #### " "&#& [##?## | | ????????????# ##??## """%&*!"### # | | ????????????# ########?## " """! ## | | ????????????### ##??## #??## "#""" """"### #? | | ??????????????## #### #??## ###"" "##?####? | | ???????????????## #### #?#"" #??????? | | ????????????????## ## "#?##" ###??????? | | ?????????????????# ### ### "##??#####????????? | | ?????????????????#####?###?######????????????????? | | ?????????????????????????????????????????????????? | | ?????????????????????????????????????????????????? | | ?????????????????????????????????????????????????? | | ?????????????????????????????????????????????????? | | ?????????????????????????????????????????????????? | | ?????????????????????????????????????????????????? | +----------------------------------------------------+ Best States ------------- Heat Dissipation 25 Energy Generation 10 Energy Capacity 200 Matter Stores 400 Matter Capacity 400 Sight Range 16 Terrain Scan Density 10 Armor Coverage 150 Evasion (%) 40 Recoil Reduction 2 Item Schematics ----------------- Seismic Detector | -10/Materials | Hacked Structural Scanner | -10/Materials | Hacked Robot Schematics ------------------ None Fabricated ------------ Nothing Alien Tech Used ----------------- None Achievements -------------- None Challenges ------------ None Game ------ Seed VoltaicLightningTriangulator Manual? 0 Play Time 00:14:26 Cumulative 718.7 hours Start 2024.08.07 @ 16:05:43 End 2024.08.07 @ 16:20:01 Sessions 1 Manual Loads 0 Difficulty Rogue Special Mode None Game No. 89 Rogue 74 Adventurer 5 Explorer 10 Win Type - Total 28 Types 6/7/6/0/3/1/4/0/1 Lore% 56 Gallery% 87 Achievement% 85 Wizard Run 0 Options --------- Layout 0 ASCII 0 Keyboard 1 Movement Numpad Keybinds 0 Fullscreen 1 Font 24/Smallcaps Map View 130x56 Zoom Use 0% Tactical HUD 1 Map Filters NONE Filters NONE Steam 1 RUN: 69d50b31-d57b-4642-b55c-1f5460830b3f